[Event "NK ABC Kwalificatie 2"]
[Site "Zoetermeer, Netherlands"]
[Date "2025.01.04"]
[Round "1.5"]
[White "Van Batenburg, Mees"]
[Black "Winter, Sven"]
[Result "1-0"]
[TimeControl "55+10"]
[WhiteFideId "8762545"]
[BlackFideId "8936015"]
[WhiteElo "2221"]
[BlackElo "1828"]

1. e4 {[%clk 00:55:16]} {[%emt 00:00:03]} c6 {[%clk 00:55:11]} {[%emt
00:00:11]} 2. d4 {[%clk 00:55:12]} {[%emt 00:00:12]} d5 {[%clk 00:55:14]}
{[%emt 00:00:08]} 3. e5 {[%clk 00:55:20]} {[%emt 00:00:02]} c5 {[%clk
00:55:16]} {[%emt 00:00:09]} 4. Nf3 {[%clk 00:55:16]} {[%emt 00:00:13]} Nc6
{[%clk 00:54:56]} {[%emt 00:00:30]} 5. dxc5 {[%clk 00:55:10]} {[%emt 00:00:15]}
Bg4 {[%clk 00:54:47]} {[%emt 00:00:20]} 6. c3 {[%clk 00:55:11]} {[%emt
00:00:09]} e6 {[%clk 00:54:04]} {[%emt 00:00:53]} 7. Be3 {[%clk 00:55:15]}
{[%emt 00:00:05]} Nh6 {[%clk 00:52:20]} {[%emt 00:01:56]} 8. Bb5 {[%clk
00:51:50]} {[%emt 00:03:34]} Qc7 {[%clk 00:48:51]} {[%emt 00:03:39]} 9. Bxh6
{[%clk 00:48:04]} {[%emt 00:03:56]} gxh6 {[%clk 00:47:07]} {[%emt 00:01:54]} 10.
Qd4 {[%clk 00:46:51]} {[%emt 00:01:22]} Rg8 {[%clk 00:44:19]} {[%emt 00:02:59]}
11. Nbd2 {[%clk 00:41:35]} {[%emt 00:05:26]} O-O-O {[%clk 00:42:24]} {[%emt
00:02:05]} 12. Bxc6 {[%clk 00:41:15]} {[%emt 00:00:30]} Qxc6 {[%clk 00:42:03]}
{[%emt 00:00:32]} 13. b4 {[%clk 00:40:41]} {[%emt 00:00:44]} Qa4 {[%clk
00:40:01]} {[%emt 00:02:11]} 14. O-O {[%clk 00:32:17]} {[%emt 00:08:33]} Bh3
{[%clk 00:35:19]} {[%emt 00:04:53]} 15. Ne1 {[%clk 00:31:54]} {[%emt 00:00:33]}
Be7 {[%clk 00:32:30]} {[%emt 00:03:00]} 16. Kh1 {[%clk 00:30:55]} {[%emt
00:01:08]} Bf5 {[%clk 00:28:26]} {[%emt 00:04:14]} 17. f3 {[%clk 00:21:57]}
{[%emt 00:09:07]} h5 {[%clk 00:25:18]} {[%emt 00:03:19]} 18. Nb3 {[%clk
00:21:04]} {[%emt 00:01:03]} h4 {[%clk 00:22:24]} {[%emt 00:03:04]} 19. Qd1
{[%clk 00:17:35]} {[%emt 00:03:39]} Qa3 {[%clk 00:16:43]} {[%emt 00:05:53]} 20.
Qe2 {[%clk 00:07:42]} {[%emt 00:10:02]} Rg6 {[%clk 00:07:54]} {[%emt 00:08:58]}
21. Rg1 {[%clk 00:03:49]} {[%emt 00:04:03]} h5 {[%clk 00:06:38]} {[%emt
00:01:27]} 22. Rd1 {[%clk 00:01:38]} {[%emt 00:02:21]} h3 {[%clk 00:05:23]}
{[%emt 00:01:25]} 23. g3 {[%clk 00:01:38]} {[%emt 00:00:11]} Rdg8 {[%clk
00:04:10]} {[%emt 00:01:23]} 24. c6 {[%clk 00:01:33]} {[%emt 00:00:15]} b6
{[%clk 00:03:48]} {[%emt 00:00:32]} 25. Na5 {[%clk 00:01:23]} {[%emt 00:00:20]}
bxa5 {[%clk 00:01:15]} {[%emt 00:02:42]} 26. Qa6+ {[%clk 00:01:33]} {[%emt
00:00:01]} Kd8 {[%clk 00:01:23]} {[%emt 00:00:02]} 27. Qb7 {[%clk 00:01:42]}
1-0

[Event "NK ABC Kwalificatie 2"]
[Site "Zoetermeer, Netherlands"]
[Date "2025.01.04"]
[Round "1.6"]
[White "Koorevaar, Sarah-Joy"]
[Black "Zhu, Chenwu"]
[Result "0-1"]
[TimeControl "55+10"]
[WhiteFideId "8750841"]
[BlackFideId "8733846"]
[WhiteElo "1814"]
[BlackElo "2177"]

1. d4 {[%clk 00:55:18]} {[%emt 00:00:02]} Nf6 {[%clk 00:55:12]} {[%emt
00:00:08]} 2. c4 {[%clk 00:55:25]} {[%emt 00:00:03]} e6 {[%clk 00:55:16]}
{[%emt 00:00:06]} 3. Nf3 {[%clk 00:55:31]} {[%emt 00:00:03]} d5 {[%clk
00:55:12]} {[%emt 00:00:14]} 4. g3 {[%clk 00:55:37]} {[%emt 00:00:04]} Bb4+
{[%clk 00:55:09]} {[%emt 00:00:13]} 5. Bd2 {[%clk 00:55:41]} {[%emt 00:00:06]}
Be7 {[%clk 00:55:15]} {[%emt 00:00:04]} 6. Bg2 {[%clk 00:55:48]} {[%emt
00:00:04]} O-O {[%clk 00:55:17]} {[%emt 00:00:08]} 7. O-O {[%clk 00:55:55]}
{[%emt 00:00:03]} Nbd7 {[%clk 00:55:12]} {[%emt 00:00:14]} 8. Nc3 {[%clk
00:55:38]} {[%emt 00:00:26]} dxc4 {[%clk 00:53:40]} {[%emt 00:01:42]} 9. Qc2
{[%clk 00:54:57]} {[%emt 00:00:51]} c6 {[%clk 00:48:47]} {[%emt 00:05:04]} 10.
Ne4 {[%clk 00:45:09]} {[%emt 00:09:58]} Nxe4 {[%clk 00:45:09]} {[%emt
00:03:48]} 11. Qxe4 {[%clk 00:45:14]} {[%emt 00:00:05]} Qc7 {[%clk 00:39:09]}
{[%emt 00:06:09]} 12. Bf4 {[%clk 00:39:49]} {[%emt 00:05:36]} Bd6 {[%clk
00:38:39]} {[%emt 00:00:40]} 13. Bxd6 {[%clk 00:28:19]} {[%emt 00:11:39]} Qxd6
{[%clk 00:38:47]} {[%emt 00:00:03]} 14. Rac1 {[%clk 00:27:57]} {[%emt
00:00:32]} Nf6 {[%clk 00:37:24]} {[%emt 00:01:33]} 15. Qf4 {[%clk 00:26:25]}
{[%emt 00:01:42]} Qxf4 {[%clk 00:35:45]} {[%emt 00:01:49]} 16. gxf4 {[%emt
00:00:07]} Nd5 {[%clk 00:35:40]} {[%emt 00:00:13]} 17. e3 {[%clk 00:24:06]}
{[%emt 00:02:35]} b5 {[%clk 00:34:23]} {[%emt 00:01:26]} 18. Ne5 {[%clk
00:24:06]} {[%emt 00:00:09]} Bb7 {[%clk 00:34:05]} {[%emt 00:00:28]} 19. Nd7
{[%clk 00:24:05]} {[%emt 00:00:11]} Rfd8 {[%clk 00:33:20]} {[%emt 00:00:55]} 20.
Nc5 {[%clk 00:24:09]} {[%emt 00:00:06]} Bc8 {[%clk 00:29:27]} {[%emt 00:04:03]}
21. a3 {[%clk 00:23:48]} {[%emt 00:00:31]} Bd7 {[%clk 00:27:41]} {[%emt
00:01:55]} 22. Nb7 {[%clk 00:19:41]} {[%emt 00:04:18]} Rdc8 {[%clk 00:27:13]}
{[%emt 00:00:38]} 23. Nc5 {[%clk 00:19:43]} {[%emt 00:00:08]} Be8 {[%clk
00:26:56]} {[%emt 00:00:26]} 24. Rc2 {[%clk 00:15:38]} {[%emt 00:04:16]} a5
{[%clk 00:26:06]} {[%emt 00:01:01]} 25. a4 {[%clk 00:13:28]} {[%emt 00:02:20]}
Kf8 {[%clk 00:25:01]} {[%emt 00:01:14]} 26. f5 {[%clk 00:10:15]} {[%emt
00:03:23]} Ke7 {[%clk 00:22:56]} {[%emt 00:02:15]} 27. Ra1 {[%clk 00:07:15]}
{[%emt 00:03:10]} g6 {[%clk 00:19:26]} {[%emt 00:03:40]} 28. fxe6 {[%clk
00:05:43]} {[%emt 00:01:41]} fxe6 {[%clk 00:19:34]} {[%emt 00:00:02]} 29. Bh3
{[%clk 00:05:33]} {[%emt 00:00:21]} Bf7 {[%clk 00:19:07]} {[%emt 00:00:37]} 30.
Kf1 {[%clk 00:05:02]} {[%emt 00:00:40]} g5 {[%clk 00:18:27]} {[%emt 00:00:50]}
31. Ke2 {[%clk 00:03:10]} {[%emt 00:02:03]} Bh5+ {[%clk 00:16:53]} {[%emt
00:01:44]} 32. f3 {[%clk 00:02:46]} {[%emt 00:00:33]} Rf8 {[%clk 00:15:39]}
{[%emt 00:01:24]} 33. Rf1 {[%clk 00:01:45]} {[%emt 00:01:12]} g4 {[%clk
00:13:49]} {[%emt 00:02:00]} 34. Bg2 {[%clk 00:01:26]} {[%emt 00:00:28]} gxf3+
{[%clk 00:13:30]} {[%emt 00:00:29]} 35. Bxf3 {[%clk 00:01:35]} Rxf3 {[%clk
00:13:10]} {[%emt 00:00:30]} 36. Rxf3 {[%clk 00:00:49]} {[%emt 00:00:56]} Rf8
{[%clk 00:13:13]} {[%emt 00:00:06]} 0-1

[Event "NK ABC Kwalificatie 2"]
[Site "Zoetermeer, Netherlands"]
[Date "2025.01.04"]
[Round "1.7"]
[White "Ten Dam, Bram"]
[Black "Hardeman, Imara"]
[Result "1-0"]
[TimeControl "55+10"]
[WhiteFideId "8975340"]
[BlackFideId "8806259"]
[WhiteElo "2013"]
[BlackElo "1677"]

1. e4 {[%clk 00:55:17]} {[%emt 00:00:03]} c6 {[%clk 00:55:16]} {[%emt
00:00:04]} 2. d4 {[%clk 00:55:22]} {[%emt 00:00:05]} d5 {[%clk 00:55:22]}
{[%emt 00:00:04]} 3. e5 {[%clk 00:55:29]} {[%emt 00:00:03]} Bf5 {[%clk
00:55:23]} {[%emt 00:00:09]} 4. Nf3 {[%clk 00:55:31]} {[%emt 00:00:06]} e6
{[%clk 00:55:16]} {[%emt 00:00:18]} 5. Be2 {[%clk 00:55:33]} {[%emt 00:00:08]}
Nd7 {[%clk 00:53:24]} {[%emt 00:02:02]} 6. O-O {[%clk 00:55:17]} {[%emt
00:00:25]} Ne7 {[%clk 00:51:50]} {[%emt 00:01:45]} 7. Be3 {[%clk 00:54:19]}
{[%emt 00:01:07]} h6 {[%clk 00:50:11]} {[%emt 00:01:50]} 8. c3 {[%clk
00:50:40]} {[%emt 00:03:49]} Bh7 {[%clk 00:45:46]} {[%emt 00:04:36]} 9. Nbd2
{[%clk 00:47:05]} {[%emt 00:03:45]} Nf5 {[%clk 00:42:25]} {[%emt 00:03:31]} 10.
Ne1 {[%clk 00:41:20]} {[%emt 00:05:53]} Be7 {[%clk 00:36:08]} {[%emt 00:06:29]}
11. Bd3 {[%clk 00:38:57]} {[%emt 00:02:33]} Nxe3 {[%clk 00:34:38]} {[%emt
00:01:40]} 12. fxe3 {[%clk 00:38:55]} {[%emt 00:00:11]} Bxd3 {[%clk 00:34:37]}
{[%emt 00:00:12]} 13. Nxd3 {[%clk 00:38:58]} {[%emt 00:00:07]} O-O {[%clk
00:34:01]} {[%emt 00:00:46]} 14. Qg4 {[%clk 00:37:48]} {[%emt 00:01:19]} Bg5
{[%clk 00:32:00]} {[%emt 00:02:12]} 15. Rae1 {[%clk 00:35:38]} {[%emt
00:02:19]} Qe8 {[%clk 00:25:21]} {[%emt 00:06:49]} 16. h4 {[%clk 00:34:08]}
{[%emt 00:01:39]} Be7 {[%clk 00:18:24]} {[%emt 00:07:09]} 17. e4 {[%clk
00:32:31]} {[%emt 00:01:46]} Qd8 {[%clk 00:12:28]} {[%emt 00:06:07]} 18. g3
{[%clk 00:31:38]} {[%emt 00:01:00]} Nb6 {[%clk 00:04:31]} {[%emt 00:08:09]} 19.
Rf3 {[%clk 00:29:34]} {[%emt 00:02:14]} Qd7 {[%clk 00:02:14]} {[%emt 00:02:28]}
20. Ref1 {[%clk 00:28:35]} {[%emt 00:01:09]} Rac8 {[%clk 00:00:12]} {[%emt
00:02:13]} 21. Qh5 {[%clk 00:25:49]} {[%emt 00:02:55]} Qe8 {[%clk 00:00:12]}
{[%emt 00:00:11]} 22. exd5 {[%clk 00:24:18]} {[%emt 00:01:41]} cxd5 {[%clk
00:00:12]} {[%emt 00:00:11]} 23. Nf4 {[%clk 00:19:17]} {[%emt 00:05:10]} Nc4
{[%clk 00:00:00]} {[%emt 00:00:13]} 1-0

[Event "NK ABC Kwalificatie 2"]
[Site "Zoetermeer, Netherlands"]
[Date "2025.01.04"]
[Round "1.8"]
[White "Drenthen, Abel"]
[Black "Baarspul, Bram"]
[Result "1/2-1/2"]
[TimeControl "55+10"]
[WhiteFideId "8800924"]
[BlackFideId "9026171"]
[WhiteElo "1664"]
[BlackElo "1986"]

1. e4 {[%emt 13:06:29]} d5 {[%emt 00:00:12]} 2. exd5 {[%emt 00:00:06]} Nf6
{[%emt 00:00:05]} 3. Nc3 {[%emt 00:00:05]} Nxd5 {[%emt 00:00:05]} 4. Nf3 {[%emt
00:00:11]} Bg4 {[%emt 00:00:14]} 5. Be2 {[%emt 00:00:11]} e6 {[%emt 00:01:03]}
6. d4 {[%emt 00:01:48]} Bb4 {[%emt 00:01:26]} 7. Bd2 {[%emt 00:00:22]} c6
{[%emt 00:05:50]} 8. Nxd5 {[%emt 00:00:42]} Bxd2+ {[%emt 00:00:15]} 9. Qxd2
{[%emt 00:00:14]} cxd5 {[%emt 00:00:14]} 10. Qg5 {[%emt 00:01:40]} Qxg5 {[%emt
00:01:15]} 11. Nxg5 {[%emt 00:00:04]} Bxe2 {[%emt 00:01:24]} 12. Kxe2 {[%emt
00:00:02]} Ke7 {[%emt 00:06:10]} 13. Rhe1 {[%emt 00:01:18]} Nc6 {[%emt
00:02:46]} 14. c3 {[%emt 00:00:15]} b5 {[%emt 00:00:28]} 15. Nf3 {[%emt
00:01:01]} b4 {[%emt 00:03:24]} 16. Rab1 {[%emt 00:02:20]} bxc3 {[%emt
00:02:28]} 17. bxc3 {[%emt 00:00:01]} Rab8 {[%emt 00:00:36]} 18. Ne5 {[%emt
00:02:35]} Nxe5 {[%emt 00:00:47]} 19. dxe5 {[%emt 00:00:03]} Rhc8 {[%emt
00:03:40]} 20. Kd3 {[%emt 00:00:08]} Rb6 {[%emt 00:03:15]} 21. Rb3 {[%emt
00:00:15]} Rcb8 {[%emt 00:01:02]} 22. Reb1 {[%emt 00:00:17]} f6 {[%emt
00:03:41]} 23. exf6+ {[%emt 00:01:13]} gxf6 {[%emt 00:00:12]} 24. Rxb6 {[%emt
00:00:23]} Rxb6 {[%emt 00:00:45]} 25. Rxb6 {[%emt 00:00:12]} axb6 26. c4 {[%emt
00:00:58]} Kd6 {[%emt 00:00:41]} 27. cxd5 {[%emt 00:03:15]} Kxd5 {[%emt
00:00:35]} 28. Kc3 {[%emt 00:01:06]} Kc5 {[%emt 00:04:27]} 29. a4 {[%emt
00:00:13]} e5 {[%emt 00:01:17]} 30. g4 {[%emt 00:01:46]} e4 {[%emt 00:05:06]}
1/2-1/2

[Event "NK ABC Kwalificatie 2"]
[Site "Zoetermeer, Netherlands"]
[Date "2025.01.04"]
[Round "1.9"]
[White "Gupta, Akul"]
[Black "Huang, Ziyang"]
[Result "1-0"]
[TimeControl "55+10"]
[WhiteFideId "8925180"]
[BlackFideId "9003676"]
[WhiteElo "1964"]
[BlackElo "1646"]

1. e4 {[%clk 00:55:15]} {[%emt 00:00:02]} c5 {[%clk 00:55:16]} {[%emt
00:00:05]} 2. Nf3 {[%clk 00:55:11]} {[%emt 00:00:13]} d6 {[%clk 00:55:18]}
{[%emt 00:00:09]} 3. d4 {[%clk 00:55:15]} {[%emt 00:00:07]} cxd4 {[%clk
00:55:22]} {[%emt 00:00:06]} 4. Nxd4 {[%clk 00:55:17]} {[%emt 00:00:08]} Nc6
{[%clk 00:55:26]} {[%emt 00:00:07]} 5. Nc3 {[%clk 00:55:17]} {[%emt 00:00:08]}
g6 {[%clk 00:55:27]} {[%emt 00:00:10]} 6. Be3 {[%clk 00:55:19]} {[%emt
00:00:08]} Bg7 {[%clk 00:55:30]} {[%emt 00:00:07]} 7. Qd2 {[%clk 00:55:11]}
{[%emt 00:00:18]} Nf6 {[%clk 00:55:15]} {[%emt 00:00:25]} 8. f3 {[%clk
00:55:10]} {[%emt 00:00:10]} O-O {[%clk 00:55:08]} {[%emt 00:00:17]} 9. O-O-O
{[%clk 00:54:06]} {[%emt 00:01:14]} Bd7 {[%clk 00:54:51]} {[%emt 00:00:27]} 10.
Kb1 {[%clk 00:53:54]} {[%emt 00:00:22]} a6 {[%clk 00:54:41]} {[%emt 00:00:20]}
11. h4 {[%clk 00:53:37]} {[%emt 00:00:26]} b5 {[%clk 00:54:28]} {[%emt
00:00:25]} 12. h5 {[%clk 00:53:20]} {[%emt 00:00:26]} b4 {[%clk 00:54:09]}
{[%emt 00:00:29]} 13. Nd5 {[%clk 00:53:19]} {[%emt 00:00:11]} Nxh5 {[%clk
00:53:13]} {[%emt 00:01:06]} 14. g4 {[%clk 00:52:26]} {[%emt 00:01:03]} Ng3
{[%clk 00:52:54]} {[%emt 00:00:27]} 15. Rh3 {[%clk 00:50:03]} {[%emt 00:02:33]}
Nxf1 {[%clk 00:52:51]} {[%emt 00:00:14]} 16. Rxf1 {[%clk 00:50:05]} {[%emt
00:00:08]} Ne5 {[%clk 00:51:47]} {[%emt 00:01:15]} 17. b3 {[%clk 00:49:03]}
{[%emt 00:01:11]} a5 {[%clk 00:51:14]} {[%emt 00:00:43]} 18. Bh6 {[%clk
00:48:52]} {[%emt 00:00:17]} Nxf3 {[%clk 00:48:10]} {[%emt 00:03:18]} 19. Rfxf3
{[%clk 00:48:33]} {[%emt 00:00:29]} Bxg4 {[%clk 00:48:10]} {[%emt 00:00:11]} 20.
Bxg7 {[%clk 00:48:38]} {[%emt 00:00:05]} Bxh3 {[%clk 00:46:54]} {[%emt
00:01:25]} 21. Rxh3 {[%clk 00:48:42]} {[%emt 00:00:06]} h5 {[%clk 00:46:40]}
{[%emt 00:00:25]} 22. Qh6 {[%clk 00:48:46]} {[%emt 00:00:05]} f6 {[%clk
00:45:34]} {[%emt 00:01:17]} 23. Rxh5 {[%clk 00:48:21]} {[%emt 00:00:35]} gxh5
{[%clk 00:42:49]} {[%emt 00:02:55]} 24. Qh8+ {[%clk 00:48:25]} {[%emt
00:00:06]} Kf7 {[%clk 00:42:40]} {[%emt 00:00:19]} 25. Qxh5+ {[%clk 00:48:28]}
{[%emt 00:00:06]} Kg8 {[%clk 00:42:16]} {[%emt 00:00:33]} 26. Bh6 {[%clk
00:48:22]} {[%emt 00:00:16]} Qe8 {[%clk 00:41:32]} {[%emt 00:00:55]} 27. Qg4+
{[%clk 00:48:27]} {[%emt 00:00:05]} Kf7 {[%clk 00:40:29]} {[%emt 00:01:14]} 28.
Qg7# {[%clk 00:48:21]} {[%emt 00:00:05]} 1-0

[Event "NK ABC Kwalificatie 2"]
[Site "Zoetermeer, Netherlands"]
[Date "2025.01.04"]
[Round "2.1"]
[White "Bakija, Alan"]
[Black "Ramak, Vince"]
[Result "1-0"]
[TimeControl "55+10"]
[WhiteFideId "8629346"]
[BlackFideId "8984470"]
[WhiteElo "2247"]
[BlackElo "1969"]

1. Nf3 {[%clk 00:55:05]} {[%emt 00:00:05]} f5 {[%clk 00:55:16]} {[%emt
00:00:14]} 2. b3 {[%clk 00:54:04]} {[%emt 00:01:10]} d6 {[%clk 00:55:15]}
{[%emt 00:00:12]} 3. d4 {[%clk 00:54:09]} {[%emt 00:00:05]} Nf6 {[%clk
00:55:16]} {[%emt 00:00:08]} 4. Bb2 {[%clk 00:53:52]} {[%emt 00:00:26]} e6
{[%clk 00:55:15]} {[%emt 00:00:12]} 5. g3 {[%clk 00:53:57]} {[%emt 00:00:05]}
Be7 {[%clk 00:55:20]} {[%emt 00:00:05]} 6. Bg2 {[%clk 00:54:03]} {[%emt
00:00:04]} O-O {[%clk 00:55:26]} {[%emt 00:00:05]} 7. O-O {[%clk 00:54:06]}
{[%emt 00:00:07]} a5 {[%clk 00:54:38]} {[%emt 00:00:58]} 8. a3 {[%clk
00:53:48]} {[%emt 00:00:28]} Qe8 {[%clk 00:53:41]} {[%emt 00:01:06]} 9. e3
{[%clk 00:53:53]} {[%emt 00:00:06]} Qh5 {[%clk 00:52:14]} {[%emt 00:01:37]} 10.
Nbd2 {[%clk 00:53:57]} {[%emt 00:00:06]} Ne4 {[%clk 00:51:48]} {[%emt
00:00:36]} 11. Nxe4 {[%clk 00:47:23]} {[%emt 00:06:44]} fxe4 {[%clk 00:51:47]}
{[%emt 00:00:10]} 12. Nd2 {[%clk 00:47:28]} {[%emt 00:00:05]} Qxd1 {[%clk
00:51:48]} {[%emt 00:00:10]} 13. Raxd1 {[%clk 00:47:25]} d5 {[%clk 00:51:44]}
{[%emt 00:00:26]} 14. f3 {[%clk 00:44:47]} {[%emt 00:02:48]} exf3 {[%clk
00:50:30]} {[%emt 00:01:25]} 15. Bxf3 {[%clk 00:44:45]} {[%emt 00:00:12]} Nd7
{[%clk 00:43:57]} {[%emt 00:06:43]} 16. e4 {[%clk 00:43:44]} {[%emt 00:01:11]}
c6 {[%clk 00:42:52]} {[%emt 00:01:16]} 17. Rde1 {[%clk 00:40:20]} {[%emt
00:03:34]} Bg5 {[%clk 00:40:33]} {[%emt 00:02:29]} 18. Nb1 {[%clk 00:37:49]}
{[%emt 00:02:41]} a4 {[%clk 00:39:10]} {[%emt 00:01:35]} 19. Bc3 {[%clk
00:31:33]} {[%emt 00:06:24]} axb3 {[%clk 00:37:27]} {[%emt 00:01:54]} 20. cxb3
{[%clk 00:30:35]} {[%emt 00:01:07]} dxe4 {[%clk 00:35:03]} {[%emt 00:02:35]} 21.
Rxe4 {[%clk 00:27:13]} {[%emt 00:03:33]} Nf6 {[%clk 00:35:02]} {[%emt
00:00:11]} 22. Re5 {[%clk 00:27:16]} {[%emt 00:00:07]} Bh6 {[%clk 00:34:13]}
{[%emt 00:00:59]} 23. a4 {[%clk 00:19:31]} {[%emt 00:07:55]} Nd5 {[%clk
00:32:25]} {[%emt 00:01:58]} 24. Bd2 {[%clk 00:19:14]} {[%emt 00:00:27]} Bxd2
{[%clk 00:28:44]} {[%emt 00:03:52]} 25. Nxd2 {[%clk 00:19:18]} {[%emt
00:00:05]} Bd7 {[%clk 00:25:28]} {[%emt 00:03:26]} 26. Ne4 {[%clk 00:14:22]}
{[%emt 00:05:06]} Ne3 {[%clk 00:25:00]} {[%emt 00:00:39]} 27. Rf2 {[%clk
00:14:27]} {[%emt 00:00:05]} Nf5 {[%clk 00:24:54]} {[%emt 00:00:16]} 28. Bg4
{[%clk 00:11:34]} {[%emt 00:03:02]} b6 {[%clk 00:20:10]} {[%emt 00:04:55]} 29.
Bxf5 {[%clk 00:08:24]} {[%emt 00:03:20]} exf5 {[%clk 00:20:04]} {[%emt
00:00:16]} 30. Nd6 {[%clk 00:08:24]} {[%emt 00:00:10]} g6 {[%clk 00:17:34]}
{[%emt 00:02:41]} 31. Re7 {[%clk 00:08:28]} {[%emt 00:00:05]} Be8 {[%clk
00:17:28]} {[%emt 00:00:16]} 32. Rc2 {[%clk 00:07:18]} {[%emt 00:01:20]} b5
{[%clk 00:15:16]} {[%emt 00:02:23]} 33. axb5 {[%clk 00:07:03]} {[%emt
00:00:25]} Ra1+ {[%clk 00:13:12]} {[%emt 00:02:14]} 34. Kg2 {[%clk 00:06:38]}
{[%emt 00:00:34]} Ra3 {[%clk 00:12:54]} {[%emt 00:00:27]} 35. bxc6 {[%clk
00:04:04]} {[%emt 00:02:45]} Bxc6+ {[%clk 00:11:44]} {[%emt 00:01:21]} 36. Rxc6
{[%clk 00:04:07]} {[%emt 00:00:06]} Rxb3 {[%clk 00:11:50]} {[%emt 00:00:04]} 37.
Rcc7 {[%clk 00:03:45]} {[%emt 00:00:32]} Rb2+ {[%clk 00:11:42]} {[%emt
00:00:18]} 38. Kh3 {[%clk 00:03:39]} {[%emt 00:00:16]} Ra8 {[%clk 00:11:40]}
{[%emt 00:00:14]} 39. Rg7+ {[%clk 00:03:19]} {[%emt 00:00:29]} Kh8 {[%clk
00:11:44]} {[%emt 00:00:06]} 40. Rxh7+ {[%clk 00:03:27]} {[%emt 00:00:02]} Kg8
{[%clk 00:11:49]} {[%emt 00:00:05]} 41. Rcg7+ {[%clk 00:03:30]} {[%emt
00:00:06]} Kf8 {[%clk 00:11:52]} {[%emt 00:00:08]} 42. Nc4 {[%clk 00:02:34]}
{[%emt 00:01:05]} Rc2 {[%clk 00:11:39]} {[%emt 00:00:23]} 43. Nb6 {[%clk
00:02:32]} {[%emt 00:00:12]} Rd8 {[%emt 00:00:54]} 44. Nd7+ {[%clk 00:02:34]}
Ke8 {[%clk 00:11:07]} {[%emt 00:00:05]} 45. Rh8# {[%clk 00:02:27]} {[%emt
00:00:04]} 1-0